fUSD/lending_fUSD_20251031
["ID","MTS","AMOUNT","RATE_DAILY","PERIOD"]
[392760032,1761923434773,-594.79619573,0.00014999,2]
[392760033,1761923434783,-500.0,0.00014999,2]
[392760034,1761923434793,-508.29032832,0.00014999,2]
[392760035,1761923434802,-500.0,0.00014999,2]
[392760036,1761923434812,-500.0,0.00014999,2]
[392760037,1761923434821,-500.0,0.00014999,2]
[392760038,1761923434830,-500.0,0.00014999,2]
[392760039,1761923434840,-500.0,0.00014999,2]
[392760040,1761923434849,-500.0,0.00014999,2]
[392760041,1761923434859,-500.0,0.00014999,2]
[392760042,1761923434868,-500.0,0.00014999,2]
[392760043,1761923434878,-500.0,0.00014999,2]
[392760044,1761923434887,-549.02756739,0.00014999,2]
[392760045,1761923434897,-155.667,0.00014999,2]
[392760046,1761923434907,-288.25603492,0.00014999,2]
[392760047,1761923434917,-569.61,0.00014999,2]
[392760048,1761923434927,-569.61,0.00014999,2]
[392760049,1761923434936,-569.61,0.00014999,2]
[392760050,1761923434945,-569.61,0.00014999,2]
[392760051,1761923434955,-569.61,0.00014999,2]
[392760052,1761923434965,-569.61,0.00014999,2]
[392760053,1761923434977,-569.61,0.00014999,2]
[392760054,1761923434986,-569.61,0.00014999,2]
[392760055,1761923434996,-569.61,0.00014999,2]
[392760056,1761923435006,-569.61,0.00014999,2]
[392760057,1761923435018,-569.61,0.00014999,2]
[392760058,1761923435027,-569.61,0.00014999,2]
[392760059,1761923435037,-569.61,0.00014999,2]
[392760060,1761923435047,-569.61,0.00014999,2]
[392760061,1761923435056,-569.61,0.00014999,2]
[392760062,1761923435065,-569.61,0.00014999,2]
[392760063,1761923435075,-569.61,0.00014999,2]
[392760064,1761923435084,-569.61,0.00014999,2]
[392760065,1761923435093,-569.61,0.00014999,2]
[392760066,1761923435102,-569.61,0.00014999,2]
[392760067,1761923435111,-569.61,0.00014999,2]
[392760068,1761923435120,-569.61,0.00014999,2]
[392760069,1761923435129,-569.61,0.00014999,2]
[392760070,1761923435139,-569.62,0.00014999,2]
[392760071,1761923435148,-500.0,0.00014999,2]
[392760072,1761923435157,-500.0,0.00014999,2]
[392760073,1761923435166,-500.0,0.00014999,2]
[392760074,1761923435176,-313.20837644,0.00014999,2]
[392760075,1761923435185,-671.66837628,0.00014999,2]
[392760076,1761923435194,-1611.0,0.00015,2]
[392760077,1761923435203,-55033.77568602,0.00015,2]
[392760078,1761923438043,-150.0,0.00014973,2]
[392760079,1761923438054,-150.0,0.00014973,2]
[392760080,1761923438064,-9904.80026232,0.00015,2]
[392760081,1761923438316,-553.61930582,0.00014973,2]
[392760082,1761923438327,-1025067.79874275,0.00015,2]
[392760083,1761923438337,-2027.73488218,0.00015,2]
[392760084,1761923438348,-7893.81958783,0.00015,2]
[392760085,1761923438358,-5704926.09574992,0.00015,2]
[392760086,1761923438369,-150.0,0.00015,2]
[392760087,1761923438379,-200.0,0.00015,2]
[392760088,1761923438389,-200.0,0.00015,2]
[392760089,1761923438399,-208.0,0.00015,2]
[392760090,1761923438408,-205.072,0.00015,2]
[392760091,1761923438418,-250.0,0.00015,2]
[392760092,1761923438428,-214.469,0.00015,2]
[392760093,1761923438437,-151.705,0.00015,2]
[392760094,1761923438447,-250.0,0.00015,2]
[392760095,1761923438457,-153.541952,0.00015,2]
[392760096,1761923438475,-188.728,0.00015,2]
[392760097,1761923438485,-250.0,0.00015,2]
[392760098,1761923438495,-209.675,0.00015,2]
[392760099,1761923438506,-218.073,0.00015,2]
[392760100,1761923438516,-376.28,0.00015,2]
[392760101,1761923438526,-109735.25090142,0.00015,2]
[392760102,1761923438538,-20266.5663489,0.00015,2]
[392760132,1761923438812,-8597.61752341,0.00015,2]
[392760135,1761923438825,-85213.66643164,0.00015,2]
[392760137,1761923438838,-3847.70829315,0.00015,2]
[392760143,1761923438888,-540.01220046,0.00015,2]
[392760234,1761923440240,-11061.66681102,0.00015,2]
[392760235,1761923440251,-284.72300004,0.00015,2]
[392760236,1761923440263,-1674.0028215,0.00015,2]
[392760237,1761923440320,-114403.34181896,0.00015,2]
[392760238,1761923440331,-200.0,0.00015,2]
[392760239,1761923440340,-154.44839244,0.00015,2]
[392760240,1761923440349,-150.0,0.00015,2]
[392760241,1761923440359,-24799.8986768,0.00015,2]
[392760242,1761923440369,-150.0,0.00015,2]
[392760243,1761923440378,-1000.0,0.00015,2]
[392760244,1761923440387,-1000.0,0.00015,2]
[392760245,1761923440397,-1000.0,0.00015,2]
[392760246,1761923440406,-1000.0,0.00015,2]
[392760247,1761923440416,-1000.0,0.00015,2]
[392760248,1761923440425,-1000.0,0.00015,2]
[392760249,1761923440434,-1000.0,0.00015,2]
[392760250,1761923440444,-1000.0,0.00015,2]
[392760251,1761923440454,-1000.0,0.00015,2]
[392760252,1761923440465,-1000.0,0.00015,2]
[392760253,1761923440475,-1000.0,0.00015,2]
[392760254,1761923440485,-1000.0,0.00015,2]
[392760255,1761923440495,-1000.0,0.00015,2]
[392760256,1761923440505,-1000.0,0.00015,2]
[392760257,1761923440518,-1000.0,0.00015,2]
[392760258,1761923440527,-1000.0,0.00015,2]
[392760259,1761923440537,-540.04739227,0.00015,2]
[392760260,1761923440546,-3662.6698636,0.00015,2]
[392760261,1761923440555,-200.0,0.00015,2]
[392760262,1761923440565,-3420.0,0.00015,2]
[392760264,1761923440575,-607.0,0.00015,2]
[392760266,1761923440584,-573.0,0.00015,2]
[392760267,1761923440593,-820.0,0.00015,2]
[392760269,1761923440602,-151.0,0.00015,2]
[392760271,1761923440611,-874.08574,0.00015,2]
[392760273,1761923440620,-160.0,0.00015,2]
[392760275,1761923440630,-3414.0,0.00015,2]
[392760277,1761923440639,-1000.0,0.00015,2]
[392760279,1761923440649,-184.53976861,0.00015,2]
[392760281,1761923440659,-907.46,0.00015018,2]
[392760283,1761923440668,-168.0,0.00015026,2]
[392760285,1761923440678,-168.0,0.00015035,2]
[392760287,1761923440689,-168.0,0.00015036,2]
[392760289,1761923440698,-2101.28,0.00015051,2]
[392760291,1761923440708,-9214.10173208,0.0001508,2]
[392760293,1761923440717,-1148.79883956,0.000151,2]
[392760350,1761923441252,-4.80863333,0.00014973,2]
[392760353,1761923441272,-145.19136667,0.00014973,2]
[392760355,1761923441281,-812.78483038,0.000151,2]
[392760357,1761923441292,-11470.0,0.000151,2]
[392760359,1761923441303,-413.87917969,0.000151,2]
[392760361,1761923441315,-1003.73583634,0.000151,2]
[392760363,1761923441326,-411.83458628,0.000151,2]
[392760365,1761923441335,-150.0,0.000151,2]
[392760367,1761923441345,-197.0,0.00015103,2]
[392760369,1761923441355,-150.0,0.0001511,2]
[392760371,1761923441364,-150.0,0.0001511,2]
[392760372,1761923441373,-255.0,0.00015118,2]
[392760373,1761923441383,-150.0,0.00015128,2]
[392760374,1761923441392,-150.0,0.00015128,2]
[392760375,1761923441402,-150.0,0.00015128,2]
[392760376,1761923441411,-500.0,0.00015128,2]
[392760377,1761923441420,-150.0,0.00015128,2]
[392760378,1761923441430,-500.0,0.00015128,2]
[392760379,1761923441439,-150.0,0.00015128,2]
[392760380,1761923441448,-500.0,0.00015128,2]
[392760381,1761923441458,-603.0,0.00015128,2]
[392760382,1761923441467,-1081.0,0.00015128,2]
[392760383,1761923441476,-500.0,0.00015128,2]
[392760384,1761923441486,-500.0,0.00015128,2]
[392760385,1761923441496,-500.0,0.00015128,2]
[392760386,1761923441507,-150.0,0.00015128,2]
[392760387,1761923441516,-264.16947784,0.00015128,2]
[392760388,1761923441526,-500.0,0.00015128,2]
[392760389,1761923441536,-500.0,0.00015128,2]
[392760390,1761923441545,-150.0,0.00015137,2]
[392760392,1761923441554,-168.0,0.00015138,2]
[392760393,1761923441563,-168.0,0.00015146,2]
[392760394,1761923441573,-200.0,0.0001515,2]
[392760395,1761923441583,-1211.2,0.00015165,2]
[392760396,1761923441592,-159.57,0.00015178,2]
[392760397,1761923441601,-150.0,0.000152,2]
[392760398,1761923441611,-168.83,0.00015205,2]
[392760399,1761923441621,-150.0,0.00015205,2]
[392760400,1761923441631,-176.7,0.00015205,2]
[392760401,1761923441640,-232.31455886,0.00015247,2]
[392760402,1761923441650,-150.0,0.00015247,2]
[392760403,1761923441659,-276.55479921,0.00015265,2]
[392760404,1761923441668,-150.0,0.00015265,2]
[392760405,1761923441677,-500.0,0.00015265,2]
[392760406,1761923441686,-150.0,0.00015265,2]
[392760407,1761923441695,-609.99216732,0.00015265,2]
[392760408,1761923441704,-150.0,0.00015265,2]
[392760409,1761923441713,-500.0,0.00015265,2]
[392760410,1761923441724,-603.0,0.00015265,2]
[392760411,1761923441734,-1081.0,0.00015265,2]
[392760412,1761923441743,-500.0,0.00015265,2]
[392760413,1761923441752,-500.0,0.00015265,2]
[392760414,1761923441765,-500.0,0.00015265,2]
[392760415,1761923441774,-150.0,0.00015265,2]
[392760416,1761923441783,-500.0,0.00015265,2]
[392760417,1761923441792,-500.0,0.00015265,2]
[392760418,1761923441802,-874.08574,0.0001527,2]
[392760419,1761923441811,-221.10216006,0.00015274,2]
[392760420,1761923441821,-285.19594352,0.00015276,2]
[392760421,1761923441831,-1517.64,0.000153,2]
[392760422,1761923441841,-200.0,0.00015301,2]
[392760423,1761923441850,-168.0,0.00015319,2]
[392760424,1761923441860,-162.64117101,0.00015324,2]
[392760425,1761923441870,-300.0,0.00015335,2]
[392760426,1761923441880,-420.0,0.00015335,2]
[392760427,1761923441889,-420.0,0.00015335,2]
[392760428,1761923441899,-197.0,0.00015365,2]
[392760429,1761923441908,-197.0,0.00015366,2]
[392760430,1761923441918,-150.0,0.00015384,2]
[392760431,1761923441927,-225.60039628,0.00015385,2]
[392760432,1761923441936,-195.0,0.00015397,2]
[392760433,1761923441945,-1971.15920068,0.00015397,2]
[392760434,1761923441955,-250.0,0.00015397,2]
[392760435,1761923441965,-2500.0,0.00015397,2]
[392760436,1761923441978,-195.0,0.00015397,2]
[392760437,1761923441987,-300.0,0.00015397,2]
[392760438,1761923441997,-193.0,0.00015397,2]
[392760439,1761923442010,-150.09795314,0.00015397,2]
[392760440,1761923442020,-300.0,0.00015397,2]
[392760441,1761923442030,-250.0,0.00015397,2]
[392760442,1761923442039,-250.0,0.00015397,2]
[392760443,1761923442049,-1680.0,0.00015397,2]
[392760444,1761923442059,-1735.10024622,0.000154,2]
[392760445,1761923442069,-502.69252399,0.000154,2]
[392760446,1761923442078,-257.92243557,0.00015402,2]
[392760447,1761923442087,-500.0,0.00015402,2]
[392760448,1761923442097,-258.58360195,0.00015402,2]
[392760449,1761923442107,-150.0,0.00015402,2]
[392760450,1761923442116,-500.0,0.00015402,2]
[392760451,1761923442125,-603.0,0.00015402,2]
[392760452,1761923442134,-1081.0,0.00015402,2]
[392760453,1761923442143,-500.0,0.00015402,2]
[392760454,1761923442153,-500.0,0.00015402,2]
[392760455,1761923442165,-500.0,0.00015402,2]
[392760456,1761923442174,-150.0,0.00015402,2]
[392760457,1761923442184,-500.0,0.00015402,2]
[392760458,1761923442193,-197.0,0.00015403,2]
[392760459,1761923442202,-166.66,0.00015419,2]
[392760460,1761923442211,-1211.2,0.00015439,2]
[392760461,1761923442220,-595.37131296,0.00015439,2]
[392760462,1761923442229,-197.0,0.00015443,2]
[392760463,1761923442238,-197.0,0.00015444,2]
[392760464,1761923442247,-1000.0,0.00015521,2]
[392760465,1761923442257,-1000.0,0.00015521,2]
[392760466,1761923442267,-476.26470399,0.00015521,2]
[392760467,1761923442276,-150.00000016,0.00015521,2]
[392760468,1761923442286,-500.0,0.00015539,2]
[392760469,1761923442295,-154.85770406,0.00015539,2]
[392760470,1761923442305,-500.0,0.00015539,2]
[392760471,1761923442314,-603.0,0.00015539,2]
[392760472,1761923442324,-1081.0,0.00015539,2]
[392760473,1761923442334,-605.98606749,0.00015539,2]
[392760474,1761923442345,-500.0,0.00015539,2]
[392760475,1761923442355,-500.0,0.00015539,2]
[392760476,1761923442364,-226.1456052,0.00015539,2]
[392760477,1761923442373,-500.0,0.00015539,2]
[392760478,1761923442382,-168.0,0.00015577,2]
[392760479,1761923442391,-500.0,0.00015676,2]
[392760480,1761923442400,-500.0,0.00015676,2]
[392760481,1761923442409,-603.0,0.00015676,2]
[392760482,1761923442418,-1081.0,0.00015676,2]
[392760483,1761923442428,-186.13093037,0.00015676,2]
[392760484,1761923442437,-505.36599058,0.00015676,2]
[392760485,1761923442446,-522.46126785,0.00015676,2]
[392760486,1761923442455,-1211.2,0.00015713,2]
[392760487,1761923442465,-168.0,0.00015769,2]
[392760488,1761923442474,-168.0,0.00015776,2]
[392760489,1761923442483,-874.08574,0.0001578,2]
[392760490,1761923442492,-329.49476813,0.00015813,2]
[392760491,1761923442502,-500.0,0.00015813,2]
[392760492,1761923442515,-603.0,0.00015813,2]
[392760493,1761923442524,-1081.0,0.00015813,2]
[392760494,1761923442533,-197.0,0.0001582,2]
[392760495,1761923442542,-166.66,0.00015896,2]
[392760496,1761923442551,-396.25,0.00015902,2]
[392760497,1761923442560,-568.75406581,0.0001595,2]
[392760498,1761923442569,-603.0,0.0001595,2]
[392760499,1761923442578,-1081.0,0.0001595,2]
[392760500,1761923442588,-1211.2,0.00015987,2]
[392760501,1761923442597,-617.40005154,0.00015987,2]
[392760502,1761923442606,-500.0,0.00016,2]
[392760503,1761923442616,-500.0,0.00016,2]
[392760504,1761923442625,-381.93153539,0.00016,2]
[392760505,1761923442635,-197.0,0.00016039,2]
[392760506,1761923442644,-310.18950508,0.00016068,2]
[392760507,1761923442654,-603.0,0.00016087,2]
[392760508,1761923442663,-1081.0,0.00016087,2]
[392760509,1761923442672,-603.0,0.00016224,2]
[392760510,1761923442682,-1081.0,0.00016224,2]
[392760511,1761923442691,-1211.2,0.00016261,2]
[392760512,1761923442700,-874.08574,0.0001627,2]
[392760513,1761923442709,-433.0,0.00016322,2]
[392760514,1761923442718,-159.57,0.00016346,2]
[392760515,1761923442727,-603.0,0.00016361,2]
[392760516,1761923442736,-1081.0,0.00016361,2]
[392760517,1761923442746,-261.65442061,0.00016361,2]
[392760518,1761923442756,-166.66,0.00016374,2]
[392760519,1761923442766,-219.05,0.00016392,2]
[392760520,1761923442775,-500.0,0.00016438,2]
[392760521,1761923442785,-488.41118399,0.00016438,2]
[392760522,1761923442796,-500.0,0.00016438,2]
[392760523,1761923442805,-500.0,0.00016438,2]
[392760524,1761923442814,-2436.07,0.00016438,2]
[392760525,1761923442824,-500.0,0.00016438,2]
[392760526,1761923442833,-603.0,0.00016498,2]
[392760527,1761923442842,-1081.0,0.00016498,2]
[392760528,1761923442851,-155.0,0.00016499,2]
[392760529,1761923442861,-152.0,0.000165,2]
[392760530,1761923442870,-152.0,0.000165,2]
[392760532,1761923442880,-152.0,0.000165,2]
[392760534,1761923442889,-152.0,0.000165,2]
[392760535,1761923442899,-152.0,0.000165,2]
[392760536,1761923442908,-152.0,0.000165,2]
[392760537,1761923442917,-152.0,0.000165,2]
[392760538,1761923442927,-152.0,0.000165,2]
[392760539,1761923442936,-152.0,0.000165,2]
[392760540,1761923442946,-152.0,0.000165,2]
[392760541,1761923442956,-152.0,0.000165,2]
[392760542,1761923442968,-152.0,0.000165,2]
[392760544,1761923442980,-152.0,0.000165,2]
[392760546,1761923442989,-152.0,0.000165,2]
[392760548,1761923442998,-152.0,0.000165,2]
[392760550,1761923443010,-152.0,0.000165,2]
[392760552,1761923443019,-152.0,0.000165,2]
[392760554,1761923443028,-152.0,0.000165,2]
[392760555,1761923443038,-152.0,0.000165,2]
[392760557,1761923443049,-152.0,0.000165,2]
[392760558,1761923443058,-152.0,0.000165,2]
[392760559,1761923443068,-152.0,0.000165,2]
[392760560,1761923443077,-152.0,0.000165,2]
[392760561,1761923443087,-152.0,0.000165,2]
[392760562,1761923443096,-152.0,0.000165,2]
[392760563,1761923443106,-152.0,0.000165,2]
[392760564,1761923443115,-152.0,0.000165,2]
[392760565,1761923443124,-152.0,0.000165,2]
[392760566,1761923443133,-152.0,0.000165,2]
[392760567,1761923443142,-152.0,0.000165,2]
[392760568,1761923443151,-152.0,0.000165,2]
[392760569,1761923443160,-152.0,0.000165,2]
[392760570,1761923443171,-152.0,0.000165,2]
[392760571,1761923443180,-152.0,0.000165,2]
[392760572,1761923443190,-152.0,0.000165,2]
[392760573,1761923443199,-152.0,0.000165,2]
[392760574,1761923443208,-152.0,0.000165,2]
[392760575,1761923443218,-152.0,0.000165,2]
[392760576,1761923443227,-152.0,0.000165,2]
[392760577,1761923443236,-152.0,0.000165,2]
[392760578,1761923443245,-152.0,0.000165,2]
[392760579,1761923443256,-152.0,0.000165,2]
[392760580,1761923443266,-152.0,0.000165,2]
[392760581,1761923443276,-152.0,0.000165,2]
[392760582,1761923443285,-293.42861051,0.000165,2]
[392760583,1761923443295,-1211.2,0.00016535,2]
[392760584,1761923443305,-640.24385345,0.00016535,2]
[392760585,1761923443314,-500.0,0.00016575,2]
[392760586,1761923443324,-500.0,0.00016575,2]
[392760587,1761923443333,-171.68,0.000166,2]
[392760588,1761923443343,-603.0,0.00016635,2]
[392760589,1761923443352,-1081.0,0.00016635,2]
[392760590,1761923443362,-300.0,0.00016705,2]
[392760591,1761923443372,-225.60039628,0.0001671,3]
[392760592,1761923443382,-500.0,0.00016712,2]
[392760593,1761923443391,-353.601939,0.00016712,2]
[392760594,1761923443400,-178.02,0.00016712,2]
[392760595,1761923443409,-874.08575,0.0001677,2]
[392760596,1761923443419,-603.0,0.00016772,2]
[392760597,1761923443428,-1081.0,0.00016772,2]
[392760598,1761923443438,-219.05767742,0.00016772,2]
[392760599,1761923443447,-1000.0,0.00016794,2]
[392760600,1761923443457,-180.0,0.000168,2]
[392760601,1761923443466,-587.0,0.000168,2]
[392760602,1761923443479,-1211.2,0.00016809,2]
[392760603,1761923443488,-500.0,0.00016849,2]
[392760604,1761923443498,-166.66,0.00016851,2]
[392760605,1761923443509,-1238.0,0.00016875,2]
[392760606,1761923443518,-152.0,0.00016875,2]
[392760607,1761923443528,-1238.0,0.00016875,2]
[392760608,1761923443537,-152.0,0.00016875,2]
[392760609,1761923443546,-825.0,0.00016875,2]
[392760610,1761923443555,-152.0,0.00016875,2]
[392760611,1761923443565,-152.0,0.00016875,2]
[392760612,1761923443576,-825.0,0.00016875,2]
[392760613,1761923443585,-152.0,0.00016875,2]
[392760614,1761923443594,-1238.0,0.00016875,2]
[392760615,1761923443603,-152.0,0.00016875,2]
[392760616,1761923443615,-152.0,0.00016875,2]
[392760617,1761923443629,-152.0,0.00016875,2]
[392760618,1761923443639,-825.0,0.00016875,2]
[392760619,1761923443648,-152.0,0.00016875,2]
[392760620,1761923443657,-152.0,0.00016875,2]
[392760621,1761923443666,-825.0,0.00016875,2]
[392760622,1761923443678,-152.0,0.00016875,2]
[392760623,1761923443688,-152.0,0.00016875,2]
[392760624,1761923443697,-825.0,0.00016875,2]
[392760625,1761923443707,-152.0,0.00016875,2]
[392760626,1761923443716,-152.0,0.00016875,2]
[392760627,1761923443725,-825.0,0.00016875,2]
[392760628,1761923443735,-152.0,0.00016875,2]
[392760629,1761923443744,-152.0,0.00016875,2]
[392760630,1761923443753,-825.0,0.00016875,2]
[392760631,1761923443974,-1238.0,0.00016875,2]
[392760632,1761923443984,-152.0,0.00016875,2]
[392760633,1761923443993,-152.0,0.00016875,2]
[392760634,1761923444003,-825.0,0.00016875,2]
[392760635,1761923444014,-152.0,0.00016875,2]
[392760636,1761923444023,-152.0,0.00016875,2]
[392760637,1761923444032,-825.0,0.00016875,2]
[392760638,1761923444041,-152.0,0.00016875,2]
[392760639,1761923444050,-1238.0,0.00016875,2]
[392760640,1761923444060,-255.5864902,0.00016875,2]
[392760641,1761923444070,-836.34211334,0.00016875,2]
[392760642,1761923444079,-152.0,0.00016875,2]
[392760643,1761923444088,-163.55206633,0.00016875,2]
[392760644,1761923444098,-1238.0,0.00016875,2]
[392760645,1761923444107,-291.21132389,0.00016875,2]
[392760646,1761923444117,-168.0,0.00016875,2]
[392760647,1761923444127,-300.66996551,0.00016875,2]
[392760648,1761923444136,-152.0,0.00016875,2]
[392760649,1761923444145,-155.63303082,0.00016875,2]
[392760650,1761923444155,-166.68,0.00016885,2]
[392760651,1761923444164,-174.88,0.000169,7]
[392760652,1761923444173,-603.0,0.00016909,2]
[392760653,1761923444182,-1081.0,0.00016909,2]
[392760654,1761923444192,-24290.7356782,0.00016936,2]
[392760655,1761923444201,-311.0,0.00016936,2]
[392760656,1761923444210,-300.0,0.00016937,2]
[392760657,1761923444219,-300.0,0.00016937,2]
[392760658,1761923444228,-300.0,0.00016937,2]
[392760659,1761923444237,-300.0,0.00016937,2]
[392760660,1761923444246,-300.0,0.00016937,2]
[392760661,1761923444257,-300.0,0.00016937,2]
[392760662,1761923444266,-300.0,0.00016937,2]
[392760663,1761923444275,-10049.62196863,0.00016938,2]
[392760664,1761923445219,-150.0,0.0001511,2]
[392760665,1761923445229,-150.0,0.00015247,2]
[392760666,1761923445239,-150.0,0.00015384,2]
[392760667,1761923445249,-151.0,0.00015385,2]
[392760668,1761923445259,-241.188732,0.00015521,2]
[392760669,1761923445269,-163.19,0.0001644,2]
[392760670,1761923445279,-69300.94219787,0.00016938,2]
[392760671,1761923445288,-1000.0,0.0001697,2]
[392760672,1761923445298,-1467.06179271,0.0001697,2]
[392760673,1761923445307,-210.96539776,0.00016986,2]
[392760674,1761923445317,-2092.67,0.00016986,2]
[392760675,1761923445326,-250.0,0.00017,2]
[392760676,1761923445335,-14366.9322419,0.00017,2]
[392760677,1761923445345,-603.0,0.00017046,2]
[392760678,1761923445354,-1081.0,0.00017046,2]
[392760679,1761923445363,-1211.2,0.00017083,2]
[392760680,1761923445372,-777.64088396,0.00017083,2]
[392760681,1761923445382,-603.0,0.00017183,2]
[392760682,1761923445392,-1081.0,0.00017183,2]
[392760683,1761923445401,-874.08574,0.0001727,2]
[392760684,1761923445411,-603.0,0.0001732,2]
[392760685,1761923445420,-1081.0,0.0001732,2]
[392760686,1761923445429,-1211.2,0.00017357,2]
[392760687,1761923445438,-5419.995742,0.00017368,2]
[392760688,1761923445447,-17705.5040903,0.0001737,2]
[392760689,1761923445457,-219.05,0.00017374,2]
[392760690,1761923445466,-603.0,0.00017457,2]
[392760691,1761923445475,-1081.0,0.00017457,2]
[392760692,1761923445484,-477.23814323,0.000175,3]
[392760693,1761923445494,-159.57,0.00017513,2]
[392760694,1761923445503,-1000.0,0.00017534,2]
[392760695,1761923445513,-603.0,0.00017594,2]
[392760696,1761923445523,-1081.0,0.00017594,2]
[392760697,1761923445532,-1211.2,0.00017631,2]
[392760698,1761923445541,-1000.0,0.00017636,2]
[392760699,1761923445550,-736.0,0.00017637,2]
[392760700,1761923445559,-1000.0,0.00017637,2]
[392760701,1761923445568,-1000.0,0.00017649,2]
[392760702,1761923445578,-1000.0,0.00017667,2]
[392760703,1761923445587,-396.25,0.00017669,2]
[392760704,1761923445597,-1425.0,0.00017675,2]
[392760705,1761923445606,-1425.0,0.00017684,2]
[392760706,1761923445615,-200.0,0.00017689,2]
[392760707,1761923445625,-800.0,0.00017691,2]
[392760708,1761923445634,-800.0,0.00017694,2]
[392760709,1761923445643,-1000.0,0.00017695,2]
[392760710,1761923445652,-200.0,0.00017697,2]
[392760711,1761923445661,-1000.0,0.00017701,2]
[392760712,1761923445670,-1000.0,0.00017716,2]
[392760713,1761923445679,-603.0,0.00017731,2]
[392760714,1761923445688,-1081.0,0.00017731,2]
[392760715,1761923445697,-150.0,0.00017734,2]
[392760716,1761923445707,-1425.0,0.00017747,2]
[392760717,1761923445716,-150.0,0.00017756,2]
[392760718,1761923445726,-150.0,0.00017767,2]
[392760719,1761923445735,-151.0,0.0001777,2]
[392760720,1761923445745,-151.0,0.0001777,2]
[392760721,1761923445754,-151.0,0.0001777,2]
[392760722,1761923445764,-151.0,0.0001777,2]
[392760723,1761923445773,-153.398029,0.0001777,2]
[392760724,1761923445782,-151.0,0.0001777,2]
[392760725,1761923445793,-155.181229,0.0001777,2]
[392760726,1761923445802,-151.0,0.0001777,2]
[392760727,1761923445812,-151.0,0.0001777,2]
[392760728,1761923445821,-152.829463,0.00017775,2]
[392760729,1761923445830,-151.0,0.00017775,2]
[392760730,1761923445840,-170.213072,0.00017775,2]
[392760731,1761923445850,-151.0,0.00017775,2]
[392760732,1761923445859,-151.0,0.00017775,2]
[392760733,1761923445869,-151.0,0.00017775,2]
[392760734,1761923445878,-151.058475,0.00017775,2]
[392760735,1761923445887,-151.0,0.00017778,2]
[392760736,1761923445896,-1425.0,0.00017792,2]
[392760737,1761923445905,-1425.0,0.00017795,2]
[392760740,1761923445914,-1425.0,0.00017802,2]
[392760742,1761923445923,-150.0,0.00017803,2]
[392760744,1761923445932,-153.340322,0.00017804,2]
[392760746,1761923445941,-151.0,0.00017804,2]
[392760747,1761923445950,-151.0,0.00017804,2]
[392760750,1761923445959,-153.733249,0.00017804,2]
[392760751,1761923446035,-151.0,0.00017804,2]
[392760752,1761923446045,-151.0,0.00017804,2]
[392760753,1761923446055,-151.0,0.00017804,2]
[392760754,1761923446064,-151.000007,0.00017804,2]
[392760755,1761923446073,-151.927287,0.00017804,2]
[392760756,1761923446082,-153.518407,0.00017804,2]
[392760757,1761923446091,-1425.0,0.00017805,2]